lending/lending_fUSD_20260206
["ID","MTS","AMOUNT","RATE_DAILY","PERIOD"]
[404650086,1770380047140,1019.45255883,0.00010575,2]
[404650087,1770380047175,1019.45255883,0.00010575,2]
[404650088,1770380047215,1019.45255883,0.00010575,2]
[404650089,1770380047246,1019.45255883,0.00010575,2]
[404650090,1770380047280,1019.45255883,0.00010575,2]
[404650091,1770380047343,739.3803664,0.00010575,2]
[404650092,1770380047368,280.07219243,0.00010575,2]
[404650093,1770380047405,1019.45255883,0.00010575,2]
[404650094,1770380047438,1019.45255883,0.00010575,2]
[404650095,1770380047482,1019.45255883,0.00010575,2]
[404650096,1770380047534,1019.45255883,0.00010575,2]
[404650097,1770380048872,151.0,0.00044089,120]
[404650098,1770380049485,151.0,0.00044089,120]
[404650099,1770380050118,151.0,0.00044089,120]
[404650100,1770380050324,1812.0,0.00035616,120]
[404650101,1770380057688,500.0,0.00044089,120]
[404650102,1770380058380,500.0,0.00044089,120]
[404650103,1770380059057,500.0,0.00044089,120]
[404650104,1770380059753,500.0,0.00044089,120]
[404650105,1770380060466,500.0,0.00044089,120]
[404650106,1770380094377,315.41960563,0.00010476,2]
[404650107,1770380101199,1200.0,0.00010575,2]
[404650108,1770380101233,300.0,0.00010575,2]
[404650109,1770380102331,150.0,0.00010575,2]
[404650110,1770380102776,455.34966412,0.00010476,2]
[404650111,1770380106524,823.190664,0.00010522,2]
[404650112,1770380108898,342.910753,7.945e-05,2]
[404650113,1770380113923,500.0,0.00044089,120]
[404650114,1770380114537,500.0,0.00044089,120]
[404650115,1770380115177,500.0,0.00044089,120]
[404650116,1770380115835,500.0,0.00044089,120]
[404650117,1770380126052,719.33664308,0.00010476,2]
[404650118,1770380162360,300.0,0.00010575,2]
[404650119,1770380174699,308.72524557,0.00010476,2]
[404650120,1770380187572,150.0,0.00010548,2]
[404650121,1770380187890,150.0,0.00010548,2]
[404650122,1770380189778,427.19499685,0.00010566,2]
[404650123,1770380189803,9272.80500315,0.00010566,2]
[404650124,1770380224445,210.27973708,0.00010476,2]
[404650125,1770380233423,500.0,0.00044089,120]
[404650126,1770380234155,500.0,0.00044089,120]
[404650127,1770380246218,479.55776206,0.00010476,2]
[404650128,1770380267324,160.0,0.00035616,120]
[404650129,1770380282677,37.36749771,0.00010575,2]
[404650130,1770380282698,112.63250229,0.00010575,2]
[404650131,1770380285953,194.9005354,0.00010575,2]
[404650132,1770380300557,577.4243634,0.00010575,2]
[404650133,1770380300595,577.4243634,0.00010575,2]
[404650134,1770380300633,577.4243634,0.00010575,2]
[404650135,1770380300673,577.4243634,0.00010575,2]
[404650136,1770380300707,577.4243634,0.00010575,2]
[404650137,1770380300743,577.4243634,0.00010575,2]
[404650138,1770380300776,577.4243634,0.00010575,2]
[404650139,1770380300814,577.4243634,0.00010575,2]
[404650140,1770380300854,577.4243634,0.00010575,2]
[404650141,1770380300898,577.4243634,0.00010575,2]
[404650142,1770380300934,577.4243634,0.00010575,2]
[404650143,1770380300968,577.4243634,0.00010575,2]
[404650145,1770380301002,577.4243634,0.00010575,2]
[404650146,1770380301036,577.4243634,0.00010575,2]
[404650147,1770380301088,577.4243634,0.00010575,2]
[404650148,1770380301129,577.4243634,0.00010575,2]
[404650149,1770380301162,453.68714791,0.00010575,2]
[404650150,1770380301188,123.73721549,0.00010575,2]
[404650151,1770380301232,577.4243634,0.00010575,2]
[404650152,1770380301267,577.4243634,0.00010575,2]
[404650153,1770380301305,577.4243634,0.00010575,2]
[404650154,1770380301341,577.4243634,0.00010575,2]
[404650155,1770380301385,577.4243634,0.00010575,2]
[404650156,1770380301422,577.4243634,0.00010575,2]
[404650157,1770380301460,577.4243634,0.00010575,2]
[404650158,1770380301648,577.4243634,0.00010575,2]
[404650159,1770380301687,577.4243634,0.00010575,2]
[404650160,1770380301725,577.4243634,0.00010575,2]
[404650161,1770380301762,577.4243634,0.00010575,2]
[404650162,1770380301800,577.4243634,0.00010575,2]
[404650163,1770380301842,577.4243634,0.00010575,2]
[404650164,1770380301882,577.4243634,0.00010575,2]
[404650165,1770380301922,577.4243634,0.00010575,2]
[404650166,1770380301960,577.4243634,0.00010575,2]
[404650167,1770380301996,577.4243634,0.00010575,2]
[404650168,1770380302033,60.05860671,0.00010575,2]
[404650169,1770380302066,517.36575669,0.00010575,2]
[404650170,1770380302372,577.4243634,0.00010575,2]
[404650171,1770380302405,577.4243634,0.00010575,2]
[404650172,1770380302437,577.4243634,0.00010575,2]
[404650173,1770380302472,577.4243634,0.00010575,2]
[404650174,1770380302510,577.4243634,0.00010575,2]
[404650175,1770380302543,577.4243634,0.00010575,2]
[404650176,1770380302581,577.4243634,0.00010575,2]
[404650177,1770380302623,577.4243634,0.00010575,2]
[404650178,1770380302662,577.4243634,0.00010575,2]
[404650179,1770380302694,577.4243634,0.00010575,2]
[404650180,1770380302735,577.4243634,0.00010575,2]
[404650181,1770380302767,577.4243634,0.00010575,2]
[404650182,1770380302805,577.4243634,0.00010575,2]
[404650183,1770380302838,577.4243634,0.00010575,2]
[404650184,1770380302880,577.4243634,0.00010575,2]
[404650185,1770380302915,577.4243634,0.00010575,2]
[404650186,1770380302950,243.85442891,0.00010575,2]
[404650187,1770380314593,151.0,0.00010573,2]
[404650188,1770380320164,600.0,0.00035,120]
[404650189,1770380335169,273.644763,0.00012219,5]
[404650190,1770380341218,300.0,0.00010574,2]
[404650191,1770380342696,300.0,0.00010476,2]
[404650192,1770380346291,500.0,0.00044091,120]
[404650193,1770380346916,500.0,0.00044091,120]
[404650194,1770380347604,500.0,0.00044091,120]
[404650195,1770380401290,1200.0,0.00010574,2]
[404650196,1770380402829,205.41268526,0.00010501,2]
[404650197,1770380405926,383.60927,0.00044091,60]
[404650198,1770380405982,581.33631,0.00044091,60]
[404650199,1770380406307,383.60927,0.00044091,60]
[404650200,1770380406350,581.33631,0.00044091,60]
[404650201,1770380406672,383.60927,0.00044091,60]
[404650202,1770380406718,581.33631,0.00044091,60]
[404650203,1770380407040,383.60927,0.00044091,60]
[404650204,1770380407130,581.33631,0.00044091,60]
[404650205,1770380407513,581.33631,0.00044091,60]
[404650206,1770380407585,383.60927,0.00044091,60]
[404650207,1770380408315,-333.56993449,0.00010575,2]
[404650208,1770380408350,-577.4243634,0.00010575,2]
[404650209,1770380408384,-577.4243634,0.00010575,2]
[404650210,1770380408418,-577.4243634,0.00010575,2]
[404650211,1770380408456,-577.4243634,0.00010575,2]
[404650212,1770380408495,-577.4243634,0.00010575,2]
[404650213,1770380408535,-577.4243634,0.00010575,2]
[404650214,1770380408574,-577.4243634,0.00010575,2]
[404650215,1770380408608,-577.4243634,0.00010575,2]
[404650216,1770380408921,-577.4243634,0.00010575,2]
[404650217,1770380408958,-577.4243634,0.00010575,2]
[404650218,1770380408994,-577.4243634,0.00010575,2]
[404650219,1770380409033,-577.4243634,0.00010575,2]
[404650220,1770380409069,-577.4243634,0.00010575,2]
[404650221,1770380409105,-577.4243634,0.00010575,2]
[404650222,1770380409146,-577.4243634,0.00010575,2]
[404650223,1770380409184,-577.4243634,0.00010575,2]
[404650224,1770380409224,-183.7958222,0.00010575,2]
[404650225,1770380409408,-393.6285412,0.00010575,2]
[404650226,1770380409446,-577.4243634,0.00010575,2]
[404650227,1770380409483,-577.4243634,0.00010575,2]
[404650228,1770380409522,-577.4243634,0.00010575,2]
[404650229,1770380409558,-577.4243634,0.00010575,2]
[404650230,1770380409592,-577.4243634,0.00010575,2]
[404650231,1770380409975,-577.4243634,0.00010575,2]
[404650232,1770380410007,-577.4243634,0.00010575,2]
[404650233,1770380410039,-551.3874666,0.00010575,2]
[404650234,1770380410113,-26.0368968,0.00010575,2]
[404650235,1770380410144,-577.4243634,0.00010575,2]
[404650236,1770380410175,-577.4243634,0.00010575,2]
[404650237,1770380410207,-577.4243634,0.00010575,2]
[404650238,1770380410238,-577.4243634,0.00010575,2]
[404650239,1770380410273,-577.4243634,0.00010575,2]
[404650240,1770380410305,-577.4243634,0.00010575,2]
[404650241,1770380410336,-577.4243634,0.00010575,2]
[404650242,1770380410368,-577.4243634,0.00010575,2]
[404650243,1770380410401,-131.7220286,0.00010575,2]
[404650244,1770380411479,-445.7023348,0.00010575,2]
[404650245,1770380411511,-577.4243634,0.00010575,2]
[404650246,1770380411542,-577.4243634,0.00010575,2]
[404650247,1770380411573,-577.4243634,0.00010575,2]
[404650248,1770380411604,-577.4243634,0.00010575,2]
[404650249,1770380411635,-577.4243634,0.00010575,2]
[404650250,1770380411663,-500.0,0.00010575,2]
[404650251,1770380411693,-158.37493865,0.00010575,2]
[404650252,1770380411721,-300.0,0.00010575,2]
[404650253,1770380418023,500.0,0.00044091,120]
[404650254,1770380419691,500.0,0.00044091,120]
[404650255,1770380462090,150.0,0.00010575,2]
[404650256,1770380478946,171.46816465,0.00010488,2]
[404650257,1770380492641,1096.14365445,0.00010364,2]
[404650258,1770380492665,1371.89734555,0.00010364,2]
[404650259,1770380492698,192.026,0.00010364,2]
[404650260,1770380607893,504.0,0.00010575,2]
[404650261,1770380642277,150.0,0.00010575,2]
[404650262,1770380660920,500.0,0.00010575,2]
[404650263,1770380660960,500.0,0.00010575,2]
[404650264,1770380661005,500.0,0.00010575,2]
[404650265,1770380661062,500.0,0.00010575,2]
[404650266,1770380661096,500.0,0.00010575,2]
[404650267,1770380661132,206.12889637,0.00010575,2]
[404650268,1770380661167,500.0,0.00010575,2]
[404650269,1770380661204,500.0,0.00010575,2]
[404650270,1770380661265,500.0,0.00010575,2]
[404650271,1770380661330,500.0,0.00010575,2]
[404650272,1770380672942,500.0,0.00010575,2]
[404650273,1770380697783,500.0,0.00010575,2]
[404650274,1770380701360,156.04678815,0.00010575,2]
[404650275,1770380701628,1200.0,0.00010575,2]
[404650276,1770380708687,500.0,0.00010575,2]
[404650277,1770380721007,460.86245706,0.00010575,2]
[404650278,1770380721936,500.0,0.00010575,2]
[404650279,1770380735123,500.0,0.00010575,2]
[404650280,1770380751091,322.97185842,0.00010575,2]
[404650281,1770380751118,177.02814158,0.00010575,2]
[404650285,1770380759035,9822.98185842,8e-05,2]
[404650286,1770380759078,2479.87940886,8e-05,2]
[404650287,1770380760007,-1000.0,0.00010576,2]
[404650288,1770380765219,-300.0,0.00010575,2]
[404650289,1770380801086,2491.08944795,0.00010566,2]
[404650292,1770380893827,392.17100268,7.888e-05,2]
[404650293,1770380912004,8343.57791071,0.00044095,120]
[404650295,1770380914616,151.0,0.00010573,2]
[404650296,1770380940839,-500.0,0.00010575,2]
[404650297,1770380940868,-500.0,0.00010575,2]
[404650298,1770380940892,-150.0,0.00010575,2]
[404650299,1770380940915,-1200.0,0.00010575,2]
[404650300,1770380941344,300.0,0.00010575,2]
[404650301,1770380950110,-250.0,0.00010575,2]
[404650302,1770380950133,-151.0,0.00010576,2]
[404650303,1770380950154,-151.0,0.00010576,2]
[404650304,1770380950177,-151.0,0.00010576,2]
[404650305,1770380950198,-151.0,0.00010576,2]
[404650306,1770380950219,-151.0,0.00010576,2]
[404650307,1770380950242,-151.0,0.00010576,2]
[404650308,1770380950264,-151.0,0.00010576,2]
[404650309,1770380950286,-151.0,0.00010576,2]
[404650310,1770380950307,-151.0,0.00010576,2]
[404650311,1770380950328,-151.0,0.00010576,2]
[404650312,1770380950348,-110.799028,0.00010576,2]
[404650314,1770380985365,500.0,0.00010575,2]
[404650315,1770380985811,500.0,0.00010575,2]
[404650317,1770380998227,-40.200972,0.00010576,2]
[404650318,1770380998250,-151.0,0.00010576,2]
[404650319,1770380998272,-151.0,0.00010576,2]
[404650320,1770380998292,-151.0,0.00010576,2]
[404650321,1770380998314,-151.0,0.00010576,2]
[404650322,1770380998335,-151.0,0.00010576,2]
[404650323,1770380998355,-151.0,0.00010576,2]
[404650324,1770380998378,-151.0,0.00010576,2]
[404650325,1770380998399,-151.0,0.00010576,2]
[404650326,1770380998426,-151.0,0.00010576,2]
[404650327,1770380998448,-2600.799028,0.00010576,2]
[404650328,1770381000185,500.0,0.00010575,2]
[404650329,1770381000243,500.0,0.00010575,2]
[404650330,1770381000279,500.0,0.00010575,2]
[404650331,1770381000312,500.0,0.00010575,2]
[404650332,1770381000348,500.0,0.00010575,2]
[404650333,1770381000565,500.0,0.00010575,2]
[404650334,1770381000600,500.0,0.00010575,2]
[404650335,1770381000635,500.0,0.00010575,2]
[404650336,1770381000670,500.0,0.00010575,2]
[404650337,1770381000725,500.0,0.00010575,2]
[404650338,1770381000763,150.0,0.00010575,2]
[404650339,1770381000804,500.0,0.00010575,2]
[404650340,1770381000839,500.0,0.00010575,2]
[404650341,1770381000874,500.0,0.00010575,2]
[404650342,1770381000907,500.0,0.00010575,2]
[404650343,1770381000943,500.0,0.00010575,2]
[404650344,1770381001172,300.0,0.00010575,2]
[404650345,1770381001428,300.0,0.00010575,2]
[404650346,1770381001561,300.0,0.00010575,2]
[404650347,1770381001839,450.01,0.00010575,2]
[404650348,1770381001863,749.99,0.00010575,2]
[404650349,1770381001969,150.0,0.00010575,2]
[404650357,1770381031364,-1005997.865972,0.00010576,2]
[404650359,1770381031374,-250.0,0.00010677,2]
[404650361,1770381031383,-1000.0,0.00010704,2]
[404650362,1770381031392,-1029.68956309,0.000108,2]
[404650363,1770381031402,-500.0,0.00010852,2]
[404650364,1770381031411,-2019.75197986,0.000109,2]
[404650365,1770381031420,-1541.13609733,0.00011,2]
[404650366,1770381031429,-25185.44525933,0.00011099,2]
[404650367,1770381031625,-4779.14242252,0.00011099,2]
[404650368,1770381031635,-182.94,0.00011367,2]
[404650369,1770381031645,-255.0,0.00011601,2]
[404650370,1770381031654,-420.0,0.00011626,2]
[404650371,1770381031664,-1680.0,0.00011632,2]
[404650372,1770381031673,-250.0,0.00011632,2]
[404650373,1770381031683,-523.59681009,0.00011633,2]
[404650374,1770381031692,-250.0,0.00011633,2]
[404650375,1770381031703,-500.0,0.00011633,2]
[404650376,1770381031712,-300.0,0.00011633,2]
[404650377,1770381031721,-7158.18,0.00012682,2]
[404650378,1770381031731,-2995.27,0.00012685,2]
[404650379,1770381031741,-1876.45,0.00012719,2]
[404650380,1770381031751,-571.28,0.00012763,2]
[404650381,1770381031762,-587.0,0.00012781,2]
[404650382,1770381031772,-2351.0,0.00012796,2]
[404650383,1770381031782,-12598.01729038,0.00013017,2]
[404650384,1770381031792,-5356.41162276,0.0001305,2]
[404650385,1770381031802,-160.0,0.00013554,2]
[404650386,1770381031812,-399.43511753,0.00013698,2]
[404650387,1770381031821,-500.0,0.00013698,2]
[404650388,1770381031838,-500.0,0.00013698,2]
[404650389,1770381031847,-312.41,0.00013698,2]
[404650390,1770381031856,-500.0,0.00013698,2]
[404650391,1770381031866,-500.0,0.00013698,2]
[404650392,1770381031876,-500.0,0.00013698,2]
[404650393,1770381031887,-500.0,0.00013698,2]
[404650394,1770381031896,-209.45197558,0.00013698,2]
[404650395,1770381031907,-510.270546,0.00013698,2]
[404650396,1770381031916,-500.0,0.00013698,2]
[404650397,1770381031924,-500.0,0.00013698,2]
[404650398,1770381031934,-500.0,0.00013698,2]
[404650399,1770381031946,-500.0,0.00013698,2]
[404650400,1770381031955,-500.0,0.00013698,2]
[404650401,1770381031965,-500.0,0.00013698,2]
[404650402,1770381031975,-500.0,0.00013698,2]
[404650403,1770381031984,-622.63893685,0.00013698,2]
[404650404,1770381031993,-816.99,0.00013698,2]
[404650405,1770381032002,-594.94429207,0.00013698,2]
[404650406,1770381032012,-500.0,0.00013698,2]
[404650407,1770381032021,-500.0,0.00013698,2]
[404650408,1770381032030,-500.0,0.00013698,2]
[404650409,1770381032042,-365.00732408,0.00013698,2]
[404650410,1770381032052,-500.0,0.00013698,2]
[404650411,1770381032062,-500.0,0.00013698,2]
[404650412,1770381032071,-7202.12,0.00013699,2]
[404650413,1770381032082,-150.99,0.00013699,2]
[404650414,1770381032092,-999.99,0.00013699,2]
[404650415,1770381032101,-9999.99,0.00013699,2]
[404650416,1770381032111,-299.99,0.00013699,2]
[404650417,1770381032123,-2468.72,0.00013791,2]
[404650418,1770381032134,-178.97,0.00013831,2]
[404650419,1770381032143,-209.57,0.00013896,2]
[404650420,1770381032152,-224.47,0.00013949,2]
[404650421,1770381032162,-816.99,0.00013972,2]
[404650422,1770381032171,-500.0,0.00013972,2]
[404650423,1770381032180,-250.0,0.00013974,2]
[404650424,1770381032190,-1852.42,0.00013982,2]
[404650425,1770381032199,-823.0,0.00014051,2]
[404650426,1770381032209,-9247.51,0.00014066,2]
[404650427,1770381032218,-3292.0,0.00014075,2]
[404650428,1770381032228,-25185.44525929,0.00014211,2]
[404650429,1770381032237,-816.99,0.00014246,2]
[404650430,1770381032247,-500.0,0.00014246,2]
[404650431,1770381032256,-4779.14242247,0.00014291,2]
[404650432,1770381032266,-3524.82,0.00014396,2]
[404650433,1770381032275,-816.99,0.0001452,2]
[404650434,1770381032285,-500.0,0.0001452,2]
[404650435,1770381032295,-203.03,0.00014548,2]
[404650436,1770381032304,-178.97,0.000146,2]
[404650437,1770381032314,-200.0,0.0001464,2]
[404650438,1770381032323,-19106.67,0.0001464,2]
[404650439,1770381032333,-1000.0,0.00014765,2]
[404650440,1770381032343,-816.99,0.00014794,2]
[404650441,1770381032352,-250.0,0.00015,2]
[404650442,1770381032361,-817.04,0.00015068,2]
[404650443,1770381032370,-2019.75197979,0.00015351,2]
[404650444,1770381032379,-178.97,0.00015368,2]
[404650445,1770381032389,-1152.0,0.00015447,2]
[404650446,1770381032398,-4609.0,0.00015483,2]
[404650447,1770381032409,-160.11448077,0.00015526,2]
[404650448,1770381032420,-675.37,0.00015536,2]
[404650449,1770381032431,-178.97,0.00016137,2]
[404650450,1770381032441,-71895.62562433,0.000162,5]
[404650451,1770381032452,-500.0,0.00016473,2]
[404650452,1770381032461,-500.0,0.00016473,2]
[404650453,1770381032471,-501.23794025,0.00016473,2]
[404650454,1770381032481,-503.2114152,0.00016473,2]
[404650455,1770381032490,-500.0,0.00016473,2]
[404650456,1770381032499,-305.18354468,0.00016473,2]
[404650457,1770381032509,-1000.0,0.0001661,2]
[404650458,1770381032519,-3240.0,0.0001679,2]
[404650459,1770381032529,-178.97,0.00016905,2]
[404650460,1770381032539,-675.37,0.00016906,2]
[404650461,1770381032548,-1372.0,0.00016982,2]
[404650462,1770381032559,-500.0,0.00017,2]
[404650463,1770381032569,-300.0,0.00017,2]
[404650464,1770381032579,-64493.54113682,0.00017,2]
[404650465,1770381032589,-1000.0,0.00017021,2]
[404650466,1770381032599,-1000.0,0.00017021,2]
[404650467,1770381032608,-1076.29863876,0.00017021,2]
[404650468,1770381032618,-4797.0,0.00017031,2]
[404650469,1770381032629,-1697.75,0.000173,2]
[404650470,1770381032639,-1500.0,0.00017568,2]
[404650471,1770381032649,-1500.0,0.00017568,2]
[404650472,1770381032658,-178.97,0.00017673,2]
[404650473,1770381032667,-2995.27,0.00017758,2]
[404650474,1770381032677,-208.27642027,0.00017808,2]
[404650475,1770381032686,-500.0,0.000179,2]
[404650476,1770381032695,-25185.44525929,0.00017934,2]
[404650477,1770381032705,-300.0,0.00017972,2]
[404650478,1770381032715,-300.0,0.00017972,2]
[404650479,1770381032724,-300.0,0.00017972,2]
[404650480,1770381032733,-300.0,0.00017972,2]
[404650481,1770381032743,-500.0,0.00017973,2]
[404650482,1770381032753,-163.46644007,0.00017973,2]
[404650483,1770381032762,-500.0,0.00017973,2]
[404650484,1770381032771,-265.91534322,0.00017973,2]
[404650485,1770381032780,-500.0,0.00017973,2]
[404650486,1770381032790,-574.47198373,0.00017973,2]
[404650487,1770381032799,-500.0,0.00017973,2]
[404650488,1770381032808,-500.0,0.00017973,2]
[404650489,1770381032818,-500.0,0.00017973,2]
[404650490,1770381032827,-500.0,0.00017973,2]
[404650491,1770381032837,-333.90054396,0.00017973,2]
[404650492,1770381032846,-208.57318794,0.00017973,2]
[404650493,1770381032856,-500.0,0.00017973,2]
[404650494,1770381032865,-500.0,0.00017973,2]
[404650495,1770381032874,-500.0,0.00017973,2]
[404650496,1770381032883,-500.0,0.00017973,2]
[404650497,1770381032892,-500.0,0.00017973,2]
[404650498,1770381032902,-501.19044206,0.00017973,2]
[404650499,1770381032911,-500.0,0.00017973,2]
[404650500,1770381032921,-500.0,0.00017973,2]
[404650501,1770381032930,-500.0,0.00017973,2]
[404650502,1770381032939,-500.0,0.00017973,2]
[404650503,1770381032949,-500.0,0.00017973,2]
[404650504,1770381032959,-500.0,0.00017973,2]
[404650505,1770381032968,-307.65242929,0.00017973,2]
[404650506,1770381032977,-586.89023392,0.00017973,2]
[404650507,1770381032987,-500.0,0.00017973,2]
[404650508,1770381032996,-500.0,0.00017973,2]
[404650509,1770381033006,-394.85489861,0.00017973,2]
[404650510,1770381033015,-500.0,0.00017973,2]
[404650511,1770381033025,-500.0,0.00017973,2]
[404650512,1770381033037,-500.0,0.00017973,2]
[404650513,1770381033047,-500.0,0.00017973,2]
[404650514,1770381033057,-500.0,0.00017973,2]
[404650515,1770381033067,-500.0,0.00017973,2]
[404650516,1770381033076,-500.0,0.00017973,2]
[404650517,1770381033087,-500.0,0.00017973,2]
[404650518,1770381033096,-500.0,0.00017973,2]
[404650519,1770381033105,-161.65464171,0.00017973,2]
[404650520,1770381033116,-500.0,0.00017973,2]
[404650521,1770381033126,-500.0,0.00017973,2]
[404650522,1770381033135,-500.0,0.00017973,2]
[404650523,1770381033144,-162.09631962,0.00017973,2]
[404650524,1770381033154,-182.684782,0.00017973,2]
[404650525,1770381033164,-160.38138244,0.00017973,2]
[404650526,1770381033174,-500.0,0.00017973,2]
[404650527,1770381033184,-500.0,0.00017973,2]
[404650528,1770381033193,-500.0,0.00017973,2]
[404650529,1770381033203,-500.0,0.00017973,2]
[404650530,1770381033212,-500.0,0.00017973,2]
[404650531,1770381033223,-500.80352602,0.00017973,2]
[404650532,1770381033232,-500.0,0.00017973,2]
[404650533,1770381033242,-500.0,0.00017973,2]
[404650534,1770381033252,-500.0,0.00017973,2]
[404650535,1770381033261,-500.0,0.00017973,2]
[404650536,1770381033271,-163.247011,0.00017973,2]
[404650537,1770381033281,-496.94502749,0.00017973,2]
[404650538,1770381033290,-500.0,0.00017973,2]
[404650539,1770381033299,-500.0,0.00017973,2]
[404650540,1770381033308,-500.0,0.00017973,2]
[404650541,1770381033318,-500.0,0.00017973,2]
[404650542,1770381033328,-500.0,0.00017973,2]
[404650543,1770381033337,-500.0,0.00017973,2]
[404650544,1770381033347,-500.0,0.00017973,2]
[404650545,1770381033356,-500.0,0.00017973,2]
[404650546,1770381033365,-500.93151703,0.00017973,2]
[404650547,1770381033375,-500.0,0.00017973,2]
[404650548,1770381033384,-500.0,0.00017973,2]
[404650549,1770381033395,-500.0,0.00017973,2]
[404650550,1770381033404,-500.0,0.00017973,2]
[404650551,1770381033413,-500.0,0.00017973,2]
[404650552,1770381033423,-500.0,0.00017973,2]
[404650553,1770381033432,-500.0,0.00017973,2]
[404650554,1770381033442,-500.0,0.00017973,2]
[404650555,1770381033452,-500.0,0.00017973,2]
[404650556,1770381033462,-501.17265493,0.00017973,2]
[404650557,1770381033471,-56430.74948987,0.0001799,3]
[404650558,1770381033481,-300.33055371,0.00018,2]
[404650559,1770381033491,-4779.14242247,0.00018005,2]
[404650560,1770381033501,-2000.0,0.00018116,2]
[404650561,1770381033510,-1737.86253141,0.00018116,2]
[404650562,1770381033520,-155.59252251,0.00018166,2]
[404650563,1770381033529,-178.97,0.00018442,2]
[404650564,1770381033539,-1000.0,0.00018456,2]
[404650565,1770381033549,-277.29810661,0.00018521,2]
[404650566,1770381033558,-1000.0,0.00018521,2]
[404650567,1770381033568,-1000.0,0.00018521,2]
[404650568,1770381033577,-1000.0,0.00018521,2]
[404650569,1770381033587,-1000.0,0.00018521,2]
[404650570,1770381033597,-1000.0,0.00018521,2]
[404650571,1770381033606,-1000.0,0.00018521,2]
[404650572,1770381033615,-695.57188427,0.00018521,2]
[404650573,1770381033625,-615.38362227,0.00018521,2]
[404650574,1770381033634,-500.66242788,0.00018521,2]
[404650575,1770381033644,-500.77613357,0.00018521,2]
[404650576,1770381033653,-1000.0,0.00018521,2]
[404650577,1770381033662,-500.68977772,0.00018521,2]
[404650578,1770381033672,-1000.0,0.00018521,2]
[404650579,1770381033681,-1002.31420001,0.00018521,2]
[404650580,1770381033690,-349.95877482,0.00018521,2]
[404650581,1770381033699,-1000.0,0.00018521,2]
[404650582,1770381033708,-1000.0,0.00018521,2]
[404650583,1770381033717,-599.50418217,0.00018521,2]
[404650584,1770381033728,-1000.0,0.00018521,2]
[404650585,1770381033738,-1000.0,0.00018521,2]
[404650586,1770381033747,-500.70107378,0.00018521,2]
[404650587,1770381033756,-500.86697962,0.00018521,2]
[404650588,1770381033766,-1000.0,0.00018521,2]
[404650589,1770381033776,-1002.45238655,0.00018521,2]
[404650590,1770381033785,-500.61959343,0.00018521,2]
[404650591,1770381033795,-1000.0,0.00018521,2]
[404650592,1770381033804,-1000.0,0.00018521,2]
[404650593,1770381033815,-294.6687281,0.00018521,2]
[404650594,1770381033826,-173.45914643,0.00018521,2]
[404650595,1770381033835,-464.97226578,0.00018521,2]
[404650596,1770381033846,-1000.0,0.00018521,2]
[404650597,1770381033855,-702.48515844,0.00018521,2]
[404650598,1770381033865,-500.45821925,0.00018521,2]
[404650599,1770381033875,-1000.0,0.00018521,2]
[404650600,1770381033884,-500.74873629,0.00018521,2]
[404650601,1770381033893,-1000.0,0.00018521,2]
[404650602,1770381033902,-1000.0,0.00018521,2]
[404650603,1770381033912,-500.63282665,0.00018521,2]